fUSD/lending_fUSD_20240117
["ID","MTS","AMOUNT","RATE_DAILY","PERIOD"]
[311905808,1705491059908,-831.71110983,0.00025479,2]
[311905809,1705491060066,-435.2938084,0.00021917,2]
[311905810,1705491060079,-64.7061916,0.00021917,2]
[311905811,1705491060089,-525.68977077,0.00021917,2]
[311905812,1705491060110,-72.36022923,0.00021917,2]
[311905813,1705491060120,-500.0,0.00021917,2]
[311905814,1705491060131,-500.0,0.00021917,2]
[311905815,1705491060141,-500.0,0.00021917,2]
[311905816,1705491060152,-152.34230328,0.00022984,2]
[311905817,1705491060162,-627.42889017,0.00025479,2]
[311905818,1705491060172,-1492.91788481,0.00025479,2]
[311905819,1705491060188,-307.60211519,0.00025479,2]
[311905820,1705491060198,-500.0,0.00025479,2]
[311905821,1705491060207,-1033.23,0.00025479,2]
[311905822,1705491060218,-1604.59,0.00025479,2]
[311905823,1705491060228,-4555.16,0.00025479,2]
[311905824,1705491060239,-660.71,0.00025479,2]
[311905825,1705491060250,-10407.26011685,0.00025479,2]
[311905826,1705491060272,-3488.85860409,0.00025479,2]
[311905827,1705491060341,155.42229511,0.00017769,2]
[311905828,1705491060461,-500.0,0.00021917,2]
[311905829,1705491060471,-500.0,0.00021917,2]
[311905830,1705491060481,-500.0,0.00021917,2]
[311905831,1705491060492,-500.0,0.00021917,2]
[311905832,1705491060503,-500.0,0.00022191,2]
[311905833,1705491060513,-340.26,0.00022465,2]
[311905834,1705491060524,-3133.41979932,0.00025479,2]
[311905835,1705491060538,-511.89905073,0.00025479,2]
[311905836,1705491060552,-77.89242901,0.00025479,2]
[311905837,1705491060563,-500.0,0.00025479,2]
[311905838,1705491060574,-1051.77,0.00025479,2]
[311905839,1705491060585,-500.0,0.00025479,2]
[311905840,1705491060596,-500.0,0.00025479,2]
[311905841,1705491060608,-958.11,0.00025479,2]
[311905842,1705491060620,-564.29,0.00025479,2]
[311905843,1705491060630,-799.67,0.00025479,2]
[311905844,1705491060641,-500.0,0.00025479,2]
[311905845,1705491060652,-707.76,0.00025479,2]
[311905846,1705491060662,-500.0,0.00025479,2]
[311905847,1705491060672,-500.0,0.00025479,2]
[311905848,1705491060683,-620.01,0.00025479,2]
[311905849,1705491060695,-2091.0586115,0.00025479,2]
[311905850,1705491060714,-850.7513885,0.00025479,2]
[311905851,1705491060725,-102.8275451,0.00025479,2]
[311905852,1705491060739,-605.1024549,0.00025479,2]
[311905853,1705491060750,-200.0,0.00025509,2]
[311905854,1705491060763,-508.72868773,0.00025509,2]
[311905855,1705491060775,-1196.67641787,0.00025509,2]
[311905856,1705491060785,-1076.81895831,0.00025653,3]
[311905857,1705491060808,-923.18104169,0.00025653,3]
[311905858,1705491060819,-1000.0,0.00025706,2]
[311905859,1705491060831,-172.52,0.00025735,2]
[311905860,1705491060842,-2446.69,0.00025752,2]
[311905861,1705491060853,-497.54338056,0.00025753,2]
[311905862,1705491060865,-925.18,0.00025753,2]
[311905863,1705491060875,-184.05958919,0.00025753,2]
[311905864,1705491060887,-529.36,0.00025753,2]
[311905865,1705491060897,-572.15,0.00025753,2]
[311905866,1705491060907,-592.47,0.00025753,2]
[311905867,1705491060920,-500.0,0.00025753,2]
[311905868,1705491060932,-500.0,0.00025753,2]
[311905869,1705491060944,-1126.63,0.00025753,2]
[311905870,1705491060954,-601.93,0.00025753,2]
[311905871,1705491060965,-989.91,0.00025753,2]
[311905872,1705491060976,-500.0,0.00025753,2]
[311905873,1705491060988,-649.67,0.00025753,2]
[311905874,1705491060999,-1047.06,0.00025753,2]
[311905875,1705491061010,-766.06,0.00025753,2]
[311905876,1705491061021,-500.0,0.00025753,2]
[311905877,1705491061032,-854.03,0.00025753,2]
[311905878,1705491061041,-500.0,0.00025753,2]
[311905879,1705491061054,-2022.47,0.00025753,2]
[311905880,1705491061065,-1951.3,0.00025753,2]
[311905881,1705491061077,-500.0,0.00025753,2]
[311905882,1705491061089,-510.59598857,0.00025753,2]
[311905883,1705491061104,-250.48040969,0.00025753,2]
[311905884,1705491061320,-156.53839199,0.0002,2]
[311905885,1705491061332,-248.3169502,0.00021916,2]
[311905886,1705491061343,-276.69730513,0.00021917,2]
[311905887,1705491061355,-337.83269487,0.00021917,2]
[311905888,1705491061367,-500.0,0.00021917,2]
[311905889,1705491061377,-500.0,0.00021917,2]
[311905890,1705491061387,-500.0,0.00021917,2]
[311905891,1705491061398,-500.0,0.00021917,2]
[311905892,1705491061408,-500.0,0.00021917,2]
[311905893,1705491061419,-152.34230328,0.00023114,2]
[311905894,1705491061428,-173.95360174,0.00025753,2]
[311905895,1705491061439,-473.6098661,0.00025753,2]
[311905896,1705491061457,-26.3901339,0.00025753,2]
[311905897,1705491061467,-1172.89011769,0.00025753,2]
[311905898,1705491061479,-437.30988231,0.00025753,2]
[311905899,1705491061489,-371.5798702,0.00025753,2]
[311905900,1705491061504,-683.4401298,0.00025753,2]
[311905901,1705491061518,-462.29,0.00025753,2]
[311905902,1705491061528,-169.36026557,0.00025753,2]
[311905903,1705491061538,-187.19381858,0.00025753,2]
[311905904,1705491061552,-312.80618142,0.00025753,2]
[311905905,1705491061562,-157.08873519,0.00025753,2]
[311905906,1705491061579,-460.78126481,0.00025753,2]
[311905907,1705491061590,-574.81873519,0.00025753,2]
[311905908,1705491061602,-505.87126481,0.00025753,2]
[311905909,1705491061613,-1459.14,0.00025753,2]
[311905910,1705491061623,-1800.52,0.00025753,2]
[311905911,1705491061636,-500.0,0.00025753,2]
[311905912,1705491061646,-1033.23,0.00025753,2]
[311905913,1705491061657,-1604.59,0.00025753,2]
[311905914,1705491061666,-4555.16,0.00025753,2]
[311905915,1705491061677,-660.71,0.00025753,2]
[311905916,1705491061687,-17619.33,0.00025753,2]
[311905917,1705491061699,-500.0,0.00025753,2]
[311905918,1705491061710,-1051.77,0.00025753,2]
[311905919,1705491061720,-500.0,0.00025753,2]
[311905920,1705491061731,-500.0,0.00025753,2]
[311905921,1705491061742,-958.11,0.00025753,2]
[311905922,1705491061752,-564.29,0.00025753,2]
[311905923,1705491061762,-799.67,0.00025753,2]
[311905924,1705491061772,-552.27042907,0.00025753,2]
[311905925,1705491061783,-707.76,0.00025753,2]
[311905926,1705491061798,-500.0,0.00025753,2]
[311905927,1705491061809,-500.0,0.00025753,2]
[311905928,1705491061818,-620.01,0.00025753,2]
[311905929,1705491061828,-2941.81,0.00025753,2]
[311905930,1705491061839,-707.93,0.00025753,2]
[311905931,1705491061849,-1139.25474807,0.00025972,2]
[311905932,1705491061860,-4000.0,0.00026,2]
[311905933,1705491061871,-500.0,0.00026026,2]
[311905934,1705491061888,-925.18,0.00026027,2]
[311905935,1705491061903,-529.36,0.00026027,2]
[311905936,1705491061914,-572.15,0.00026027,2]
[311905937,1705491061925,-592.47,0.00026027,2]
[311905938,1705491061935,-500.0,0.00026027,2]
[311905939,1705491061946,-500.0,0.00026027,2]
[311905940,1705491061957,-1126.63,0.00026027,2]
[311905941,1705491061967,-601.93,0.00026027,2]
[311905942,1705491061977,-162.8278242,0.00026027,2]
[311905943,1705491061988,-989.91,0.00026027,2]
[311905944,1705491061999,-649.67,0.00026027,2]
[311905945,1705491062010,-1047.06,0.00026027,2]
[311905946,1705491062022,-766.06,0.00026027,2]
[311905947,1705491062033,-500.0,0.00026027,2]
[311905948,1705491062043,-854.03,0.00026027,2]
[311905949,1705491062053,-500.0,0.00026027,2]
[311905950,1705491062064,-2022.47,0.00026027,2]
[311905951,1705491062075,-1951.3,0.00026027,2]
[311905952,1705491062085,-500.0,0.00026027,2]
[311905953,1705491062096,-935.03,0.00026027,2]
[311905954,1705491062106,-500.0,0.00026027,2]
[311905955,1705491062118,-1610.2,0.00026027,2]
[311905956,1705491062129,-1055.02,0.00026027,2]
[311905957,1705491062140,-500.0,0.00026027,2]
[311905958,1705491062153,-617.87,0.00026027,2]
[311905959,1705491062163,-1080.69,0.00026027,2]
[311905960,1705491062174,-1459.14,0.00026027,2]
[311905961,1705491062184,-1800.52,0.00026027,2]
[311905962,1705491062194,-500.0,0.00026027,2]
[311905963,1705491062204,-1033.23,0.00026027,2]
[311905964,1705491062215,-1604.59,0.00026027,2]
[311905965,1705491062225,-4555.16,0.00026027,2]
[311905966,1705491062238,-660.71,0.00026027,2]
[311905967,1705491062250,-17619.33,0.00026027,2]
[311905968,1705491062261,-500.0,0.00026027,2]
[311905969,1705491062271,-1051.77,0.00026027,2]
[311905970,1705491062282,-500.0,0.00026027,2]
[311905971,1705491062292,-507.04,0.00026027,2]
[311905972,1705491062302,-958.11,0.00026027,2]
[311905973,1705491062313,-564.29,0.00026027,2]
[311905974,1705491062325,-799.67,0.00026027,2]
[311905975,1705491062335,-707.76,0.00026027,2]
[311905976,1705491062345,-500.0,0.00026027,2]
[311905977,1705491062355,-500.0,0.00026027,2]
[311905978,1705491062367,-620.01,0.00026027,2]
[311905979,1705491062379,-2941.81,0.00026027,2]
[311905980,1705491062395,-707.93,0.00026027,2]
[311905981,1705491062405,-713.62,0.00026027,2]
[311905982,1705491062416,-172.52,0.00026283,2]
[311905983,1705491062427,-925.18,0.00026301,2]
[311905984,1705491062438,-529.36,0.00026301,2]
[311905985,1705491062449,-572.15,0.00026301,2]
[311905986,1705491062460,-592.47,0.00026301,2]
[311905987,1705491062470,-500.0,0.00026301,2]
[311905988,1705491062481,-169.29407526,0.00026301,2]
[311905989,1705491062492,-1126.63,0.00026301,2]
[311905990,1705491062503,-601.93,0.00026301,2]
[311905991,1705491062513,-989.91,0.00026301,2]
[311905992,1705491062524,-649.67,0.00026301,2]
[311905993,1705491062534,-1047.06,0.00026301,2]
[311905994,1705491062544,-766.06,0.00026301,2]
[311905995,1705491062555,-500.0,0.00026301,2]
[311905996,1705491062565,-854.03,0.00026301,2]
[311905997,1705491062575,-188.46104732,0.00026301,2]
[311905998,1705491062585,-2022.47,0.00026301,2]
[311905999,1705491062596,-1951.3,0.00026301,2]
[311906000,1705491062606,-500.0,0.00026301,2]
[311906001,1705491062617,-935.03,0.00026301,2]
[311906002,1705491062629,-500.0,0.00026301,2]
[311906003,1705491062640,-1610.2,0.00026301,2]
[311906004,1705491062651,-1055.02,0.00026301,2]
[311906005,1705491062662,-500.0,0.00026301,2]
[311906006,1705491062672,-617.87,0.00026301,2]
[311906007,1705491062683,-1080.69,0.00026301,2]
[311906008,1705491062694,-1459.14,0.00026301,2]
[311906009,1705491062707,-1800.52,0.00026301,2]
[311906010,1705491062721,-500.0,0.00026301,2]
[311906011,1705491062734,-1033.23,0.00026301,2]
[311906012,1705491062745,-1604.59,0.00026301,2]
[311906013,1705491062755,-4555.16,0.00026301,2]
[311906014,1705491062767,-660.71,0.00026301,2]
[311906015,1705491062779,-17619.33,0.00026301,2]
[311906016,1705491062790,-500.0,0.00026301,2]
[311906017,1705491062800,-1051.77,0.00026301,2]
[311906018,1705491062811,-500.0,0.00026301,2]
[311906019,1705491062822,-958.11,0.00026301,2]
[311906020,1705491062832,-564.29,0.00026301,2]
[311906021,1705491062842,-799.67,0.00026301,2]
[311906022,1705491062853,-707.76,0.00026301,2]
[311906023,1705491062864,-500.0,0.00026301,2]
[311906024,1705491062875,-500.0,0.00026301,2]
[311906025,1705491062887,-620.01,0.00026301,2]
[311906026,1705491062898,-2941.81,0.00026301,2]
[311906027,1705491062909,-707.93,0.00026301,2]
[311906028,1705491062921,-1046.37156706,0.0002646,2]
[311906029,1705491062932,-1106.49856249,0.0002646,2]
[311906030,1705491062942,-1094.82304847,0.0002646,2]
[311906031,1705491062953,-151.17074475,0.00026511,2]
[311906032,1705491062965,-159.68,0.00026551,2]
[311906033,1705491062975,-671.91552869,0.00026573,2]
[311906034,1705491062986,-925.18,0.00026575,2]
[311906035,1705491062997,-529.36,0.00026575,2]
[311906036,1705491063008,-572.15,0.00026575,2]
[311906037,1705491063018,-592.47,0.00026575,2]
[311906038,1705491063029,-500.0,0.00026575,2]
[311906039,1705491063039,-1126.63,0.00026575,2]
[311906040,1705491063053,-601.93,0.00026575,2]
[311906041,1705491063065,-989.91,0.00026575,2]
[311906042,1705491063076,-649.67,0.00026575,2]
[311906043,1705491063087,-1047.06,0.00026575,2]
[311906044,1705491063099,-766.06,0.00026575,2]
[311906045,1705491063110,-594.0956739,0.00026575,2]
[311906046,1705491063122,-854.03,0.00026575,2]
[311906047,1705491063132,-2022.47,0.00026575,2]
[311906048,1705491063144,-1951.3,0.00026575,2]
[311906049,1705491063156,-500.0,0.00026575,2]
[311906050,1705491063167,-935.03,0.00026575,2]
[311906051,1705491063179,-500.0,0.00026575,2]
[311906052,1705491063852,-1610.2,0.00026575,2]
[311906053,1705491063872,-1055.02,0.00026575,2]
[311906054,1705491063886,-500.0,0.00026575,2]
[311906055,1705491063905,-617.87,0.00026575,2]
[311906056,1705491063924,-1080.69,0.00026575,2]
[311906057,1705491063936,-1459.14,0.00026575,2]
[311906058,1705491063946,-1800.52,0.00026575,2]
[311906059,1705491063956,-500.0,0.00026575,2]
[311906060,1705491063965,-1033.23,0.00026575,2]
[311906061,1705491063976,-1604.59,0.00026575,2]
[311906062,1705491063986,-4555.16,0.00026575,2]
[311906063,1705491063997,-660.71,0.00026575,2]
[311906064,1705491064007,-17619.33,0.00026575,2]
[311906065,1705491064018,-500.0,0.00026575,2]
[311906066,1705491064029,-1051.77,0.00026575,2]
[311906067,1705491064039,-500.0,0.00026575,2]
[311906068,1705491064049,-958.11,0.00026575,2]
[311906069,1705491064058,-564.29,0.00026575,2]
[311906070,1705491064068,-799.67,0.00026575,2]
[311906071,1705491064077,-707.76,0.00026575,2]
[311906072,1705491064087,-500.0,0.00026575,2]
[311906073,1705491064098,-500.0,0.00026575,2]
[311906074,1705491064108,-620.01,0.00026575,2]
[311906075,1705491064119,-2941.81,0.00026575,2]
[311906076,1705491064128,-707.93,0.00026575,2]
[311906077,1705491064138,-17382.84,0.00026575,2]
[311906078,1705491064148,-1069.71386583,0.00026581,2]
[311906079,1705491064158,-172.52,0.00026831,2]
[311906080,1705491064167,-925.18,0.00026849,2]
[311906081,1705491064177,-529.36,0.00026849,2]
[311906082,1705491064186,-572.15,0.00026849,2]
[311906083,1705491064196,-592.47,0.00026849,2]
[311906084,1705491064205,-500.0,0.00026849,2]
[311906085,1705491064215,-1126.63,0.00026849,2]
[311906086,1705491064224,-601.93,0.00026849,2]
[311906087,1705491064233,-989.91,0.00026849,2]
[311906088,1705491064243,-649.67,0.00026849,2]
[311906089,1705491064252,-1047.06,0.00026849,2]
[311906090,1705491064261,-766.06,0.00026849,2]
[311906091,1705491064271,-854.03,0.00026849,2]
[311906092,1705491064281,-2022.47,0.00026849,2]
[311906093,1705491064292,-1951.3,0.00026849,2]
[311906094,1705491064301,-500.0,0.00026849,2]
[311906095,1705491064311,-935.03,0.00026849,2]
[311906096,1705491064321,-500.0,0.00026849,2]
[311906097,1705491064334,-1610.2,0.00026849,2]
[311906098,1705491064344,-1055.02,0.00026849,2]
[311906099,1705491064354,-500.0,0.00026849,2]
[311906100,1705491064364,-617.87,0.00026849,2]
[311906101,1705491064374,-1080.69,0.00026849,2]
[311906102,1705491064383,-1459.14,0.00026849,2]
[311906103,1705491064394,-1800.52,0.00026849,2]
[311906104,1705491064404,-500.0,0.00026849,2]
[311906105,1705491064414,-1033.23,0.00026849,2]
[311906106,1705491064424,-1604.59,0.00026849,2]
[311906107,1705491064434,-4555.16,0.00026849,2]
[311906108,1705491064444,-660.71,0.00026849,2]
[311906109,1705491064454,-17619.33,0.00026849,2]
[311906110,1705491064464,-500.0,0.00026849,2]
[311906111,1705491064474,-1051.77,0.00026849,2]
[311906112,1705491064485,-500.0,0.00026849,2]
[311906113,1705491064495,-958.11,0.00026849,2]
[311906114,1705491064505,-564.29,0.00026849,2]
[311906115,1705491064516,-799.67,0.00026849,2]
[311906116,1705491064526,-707.76,0.00026849,2]
[311906117,1705491064536,-500.0,0.00026849,2]
[311906118,1705491064546,-500.0,0.00026849,2]
[311906119,1705491064557,-620.01,0.00026849,2]
[311906120,1705491064567,-2941.81,0.00026849,2]
[311906121,1705491064577,-707.93,0.00026849,2]
[311906122,1705491064587,-200.0,0.00026879,2]
[311906123,1705491064596,-800.0,0.00026879,2]
[311906124,1705491064607,-500.0,0.00026999,2]
[311906125,1705491064618,-500.0,0.00026999,2]
[311906126,1705491064629,-452.32290009,0.00026999,2]
[311906127,1705491064638,-196.42098273,0.00026999,2]
[311906128,1705491064648,-500.0,0.00026999,2]
[311906129,1705491064658,-500.0,0.00026999,2]
[311906130,1705491064668,-500.0,0.00026999,2]
[311906131,1705491064677,-500.0,0.00026999,2]
[311906132,1705491064687,-522.51386575,0.00026999,2]
[311906133,1705491064700,-500.0,0.00026999,2]
[311906134,1705491064711,-500.0,0.00026999,2]
[311906135,1705491064720,-500.0,0.00026999,2]
[311906136,1705491064731,-500.0,0.00026999,2]
[311906137,1705491064742,-500.0,0.00026999,2]
[311906138,1705491064753,-500.0,0.00026999,2]
[311906139,1705491064763,-500.0,0.00026999,2]
[311906140,1705491064774,-500.0,0.00026999,2]
[311906141,1705491064785,-500.0,0.00026999,2]
[311906142,1705491064795,-500.0,0.00026999,2]
[311906143,1705491064805,-502.71474624,0.00026999,2]
[311906144,1705491064814,-3000.0,0.00027,2]
[311906145,1705491064825,-1300.0,0.00027,3]
[311906146,1705491064835,-925.18,0.00027123,2]
[311906147,1705491064845,-529.36,0.00027123,2]
[311906148,1705491064855,-572.15,0.00027123,2]
[311906149,1705491064865,-592.47,0.00027123,2]
[311906150,1705491064875,-500.0,0.00027123,2]
[311906151,1705491064885,-1126.63,0.00027123,2]
[311906152,1705491064895,-601.93,0.00027123,2]
[311906153,1705491064906,-989.91,0.00027123,2]
[311906154,1705491064915,-649.67,0.00027123,2]
[311906155,1705491064925,-1047.06,0.00027123,2]
[311906156,1705491064935,-766.06,0.00027123,2]
[311906157,1705491064946,-854.03,0.00027123,2]
[311906158,1705491064956,-2022.47,0.00027123,2]
[311906159,1705491064965,-1951.3,0.00027123,2]
[311906160,1705491064975,-641.58456968,0.00027123,2]
[311906161,1705491064984,-935.03,0.00027123,2]
[311906162,1705491064994,-500.0,0.00027123,2]
[311906163,1705491065008,-1610.2,0.00027123,2]
[311906164,1705491065018,-1055.02,0.00027123,2]
[311906165,1705491065027,-500.0,0.00027123,2]
[311906166,1705491065037,-617.87,0.00027123,2]
[311906167,1705491065047,-1080.69,0.00027123,2]
[311906168,1705491065056,-1459.14,0.00027123,2]
[311906169,1705491065067,-1800.52,0.00027123,2]
[311906170,1705491065077,-500.0,0.00027123,2]
[311906171,1705491065087,-1033.23,0.00027123,2]
[311906172,1705491065097,-1604.59,0.00027123,2]
[311906173,1705491065107,-4555.16,0.00027123,2]
[311906174,1705491065119,-660.71,0.00027123,2]
[311906175,1705491065128,-17619.33,0.00027123,2]
[311906176,1705491065138,-500.0,0.00027123,2]
[311906177,1705491065148,-1051.77,0.00027123,2]
[311906178,1705491065158,-645.07,0.00027123,2]
[311906179,1705491065168,-958.11,0.00027123,2]
[311906180,1705491065178,-564.29,0.00027123,2]
[311906181,1705491065187,-799.67,0.00027123,2]
[311906182,1705491065198,-707.76,0.00027123,2]
[311906183,1705491065207,-484.86896637,0.00027123,2]
[311906184,1705491065217,-500.0,0.00027123,2]
[311906185,1705491065227,-620.01,0.00027123,2]
[311906186,1705491065237,-2941.81,0.00027123,2]
[311906187,1705491065247,-707.93,0.00027123,2]
[311906188,1705491065257,-728.59,0.00027123,2]
[311906189,1705491065266,-172.52,0.00027379,2]
[311906190,1705491065276,-925.18,0.00027397,2]
[311906191,1705491065286,-529.36,0.00027397,2]
[311906192,1705491065296,-572.15,0.00027397,2]
[311906193,1705491065305,-592.47,0.00027397,2]
[311906194,1705491065315,-500.0,0.00027397,2]
[311906195,1705491065325,-1126.63,0.00027397,2]
[311906196,1705491065334,-601.93,0.00027397,2]
[311906197,1705491065344,-989.91,0.00027397,2]
[311906198,1705491065354,-649.67,0.00027397,2]
[311906199,1705491065364,-1047.06,0.00027397,2]
[311906200,1705491065374,-766.06,0.00027397,2]
[311906201,1705491065383,-854.03,0.00027397,2]
[311906202,1705491065393,-2022.47,0.00027397,2]
[311906203,1705491065403,-1951.3,0.00027397,2]
[311906204,1705491065413,-500.0,0.00027397,30]
[311906205,1705491065422,-935.03,0.00027397,2]
[311906206,1705491065434,-500.0,0.00027397,2]
[311906207,1705491065444,-1610.2,0.00027397,2]
[311906208,1705491065454,-1055.02,0.00027397,2]
[311906209,1705491065464,-500.0,0.00027397,2]
[311906210,1705491065474,-617.87,0.00027397,2]
[311906211,1705491065484,-1080.69,0.00027397,2]
[311906212,1705491065494,-1459.14,0.00027397,2]
[311906213,1705491065504,-1800.52,0.00027397,2]
[311906214,1705491065514,-500.0,0.00027397,2]
[311906215,1705491065524,-155.0,0.00027397,2]
[311906216,1705491065535,-1033.23,0.00027397,2]
[311906217,1705491065545,-1604.59,0.00027397,2]
[311906218,1705491065555,-4555.16,0.00027397,2]
[311906219,1705491065565,-660.71,0.00027397,2]
[311906220,1705491065575,-17619.33,0.00027397,2]
[311906221,1705491065585,-500.0,0.00027397,2]
[311906222,1705491065595,-1051.77,0.00027397,2]
[311906223,1705491065605,-958.11,0.00027397,2]
[311906224,1705491065616,-564.29,0.00027397,2]
[311906225,1705491065626,-799.67,0.00027397,2]
[311906226,1705491065636,-707.76,0.00027397,2]
[311906227,1705491065646,-412.41585834,0.00027397,2]
[311906228,1705491065656,-620.01,0.00027397,2]
[311906229,1705491065667,-2941.81,0.00027397,2]
[311906230,1705491065677,-707.93,0.00027397,2]
[311906231,1705491065687,-3174.24,0.00027397,10]
[311906232,1705491065697,-5859.57,0.00027397,10]
[311906233,1705491065709,-1987.64,0.00027397,2]
[311906234,1705491065719,-12431.29,0.00027397,2]
[311906235,1705491065729,-398.8,0.00027397,2]
[311906236,1705491065740,-450.0,0.00027399,2]
[311906237,1705491065750,-500.0,0.00027399,2]
[311906238,1705491065760,-500.0,0.00027399,2]
[311906239,1705491065770,-500.0,0.00027399,2]
[311906240,1705491065780,-500.0,0.00027399,2]
[311906241,1705491065791,-500.0,0.00027399,2]
[311906242,1705491065801,-500.0,0.00027399,2]
[311906243,1705491065810,-500.0,0.00027399,2]
[311906244,1705491065820,-500.0,0.00027399,2]
[311906245,1705491065830,-500.0,0.00027399,2]
[311906246,1705491065839,-500.0,0.00027399,2]
[311906247,1705491065849,-500.0,0.00027399,2]
[311906248,1705491065859,-500.0,0.00027399,2]
[311906249,1705491065870,-500.0,0.00027399,2]
[311906250,1705491065880,-500.0,0.00027399,2]
[311906251,1705491065892,-500.0,0.00027399,2]
[311906252,1705491065902,-500.0,0.00027399,2]
[311906253,1705491065911,-500.0,0.00027399,2]
[311906254,1705491065921,-500.0,0.00027399,2]
[311906255,1705491065930,-500.0,0.00027399,2]
[311906256,1705491065940,-500.0,0.00027399,2]
[311906257,1705491065949,-500.0,0.00027399,2]
[311906258,1705491065963,-500.0,0.00027399,2]
[311906259,1705491066001,-500.0,0.00027399,2]
[311906260,1705491066011,-500.0,0.00027399,2]
[311906261,1705491066021,-500.0,0.00027399,2]
[311906262,1705491066031,-500.0,0.00027399,2]
[311906263,1705491066041,-500.0,0.00027399,2]
[311906264,1705491066050,-500.0,0.00027399,2]
[311906265,1705491066060,-500.0,0.00027399,2]
[311906266,1705491066070,-500.0,0.00027399,2]
[311906267,1705491066079,-500.0,0.00027399,2]
[311906268,1705491066088,-500.0,0.00027399,2]
[311906269,1705491066098,-500.0,0.00027399,2]
[311906270,1705491066107,-500.0,0.00027399,2]
[311906271,1705491066118,-500.0,0.00027399,2]
[311906272,1705491066128,-500.0,0.00027399,2]
[311906273,1705491066138,-500.0,0.00027399,2]
[311906274,1705491066147,-500.0,0.00027399,2]
[311906275,1705491066157,-500.0,0.00027399,2]
[311906276,1705491066167,-500.0,0.00027399,2]
[311906277,1705491066177,-500.0,0.00027399,2]
[311906278,1705491066186,-500.0,0.00027399,2]
[311906279,1705491066196,-500.0,0.00027399,2]
[311906280,1705491066206,-450.0,0.00027399,2]
[311906281,1705491066216,-500.0,0.00027399,2]
[311906282,1705491066226,-500.0,0.00027399,2]
[311906283,1705491066236,-500.0,0.00027399,2]
[311906284,1705491066245,-500.0,0.00027399,2]
[311906285,1705491066255,-500.0,0.00027399,2]
[311906286,1705491066265,-350.0,0.00027399,2]
[311906287,1705491066274,-500.0,0.00027399,2]
[311906288,1705491066284,-500.0,0.00027399,2]
[311906289,1705491066295,-500.0,0.00027399,2]
[311906290,1705491066304,-500.0,0.00027399,2]
[311906291,1705491066314,-500.0,0.00027399,2]
[311906292,1705491066323,-500.0,0.00027399,2]
[311906293,1705491066403,-500.0,0.00027399,2]
[311906294,1705491066414,-500.0,0.00027399,2]
[311906295,1705491066425,-500.0,0.00027399,2]
[311906296,1705491066435,-500.0,0.00027399,2]
[311906297,1705491066445,-500.0,0.00027399,2]
[311906298,1705491066456,-500.0,0.00027399,2]
[311906299,1705491066466,-500.0,0.00027399,2]
[311906300,1705491066476,-500.0,0.00027399,2]
[311906301,1705491066487,-500.0,0.00027399,2]
[311906302,1705491066496,-500.0,0.00027399,2]
[311906303,1705491066506,-500.0,0.00027399,2]
[311906304,1705491066516,-500.0,0.00027399,2]
[311906305,1705491066526,-500.0,0.00027399,2]
[311906306,1705491066536,-500.0,0.00027399,2]
[311906307,1705491066546,-500.0,0.00027399,2]